[Event "Early Titled Tuesday Blitz | February 8 2022"]
[White "Grandelius, Nils"]
[Black "Xiong, Jeffery"]
[WhiteFideId "1710400"]
[BlackFideId "2047640"]
[WhiteElo "2617"]
[BlackElo "2727"]
[Result "1-0"]
[Round "06"]
[TimeControl "180+1"]
[Date "2022.02.08"]
[WhiteClock "0:00:15"]
[BlackClock "0:00:05"]

1. d4 {[%clk 0:03:00]}  Nf6 {[%clk 0:02:58]} 2. Nf3 {[%clk 0:02:57]}  d5 {[%clk 0:02:55]} 3. c4 {[%clk 0:02:56]}  dxc4 {[%clk 0:02:54]} 4. e3 {[%clk 0:02:56]}  e6 {[%clk 0:02:54]} 5. Bxc4 {[%clk 0:02:56]}  c5 {[%clk 0:02:55]} 6. O-O {[%clk 0:02:55]}  Nc6 {[%clk 0:02:55]} 7. Nc3 {[%clk 0:02:53]}  a6 {[%clk 0:02:53]} 8. Re1 {[%clk 0:02:53]}  b5 {[%clk 0:02:47]} 9. Bd3 {[%clk 0:02:44]}  Bb7 {[%clk 0:02:46]} 10. a4 {[%clk 0:02:43]}  b4 {[%clk 0:02:14]} 11. Ne4 {[%clk 0:02:43]}  cxd4 {[%clk 0:02:14]} 12. Nxf6+ {[%clk 0:02:35]}  gxf6 {[%clk 0:02:13]} 13. exd4 {[%clk 0:02:35]}  Be7 {[%clk 0:02:08]} 14. Bf4 {[%clk 0:02:24]}  Na5 {[%clk 0:02:01]} 15. Rc1 {[%clk 0:02:16]}  Rc8 {[%clk 0:02:01]} 16. Rxc8 {[%clk 0:02:09]}  Qxc8 {[%clk 0:02:02]} 17. Bg3 {[%clk 0:01:41]}  Bd5 {[%clk 0:01:52]} 18. Qe2 {[%clk 0:01:35]}  Qa8 {[%clk 0:00:47]} 19. Bxa6 {[%clk 0:01:33]}  O-O {[%clk 0:00:48]} 20. Bd3 {[%clk 0:01:25]}  Rc8 {[%clk 0:00:29]} 21. Qe3 {[%clk 0:01:24]}  Bf8 {[%clk 0:00:24]} 22. Qf4 {[%clk 0:00:45]}  Bg7 {[%clk 0:00:22]} 23. Bh4 {[%clk 0:00:45]}  Qb8 {[%clk 0:00:20]} 24. Qg4 {[%clk 0:00:29]}  f5 {[%clk 0:00:20]} 25. Qh5 {[%clk 0:00:29]}  Qc7 {[%clk 0:00:12]} 26. Bg3 {[%clk 0:00:22]}  Qe7 {[%clk 0:00:12]} 27. Bxf5 {[%clk 0:00:19]}  Bxf3 {[%clk 0:00:06]} 28. Bxh7+ {[%clk 0:00:17]}  Kf8 {[%clk 0:00:05]} 29. Qxf3 {[%clk 0:00:17]}  Bxd4 {[%clk 0:00:05]} 30. b3 {[%clk 0:00:17]}  Rc3 {[%clk 0:00:05]} 31. Qa8+ {[%clk 0:00:15]}  Kg7 {[%clk 0:00:05]} 32. Qg8+ {[%clk 0:00:15]} 1-0


[Site "https://www.chess.com"]

[Event "Early Titled Tuesday Blitz | February 8 2022"]
[White "Guliyev, Namig"]
[Black "Shevchenko, Kirill"]
[WhiteFideId "13400363"]
[BlackFideId "14129574"]
[WhiteElo "2487"]
[BlackElo "2624"]
[Result "0-1"]
[Round "06"]
[TimeControl "180+1"]
[Date "2022.02.08"]
[WhiteClock "0:00:41"]
[BlackClock "0:00:49"]

1. e4 {[%clk 0:03:00]}  c5 {[%clk 0:02:59]} 2. Nf3 {[%clk 0:02:59]}  Nc6 {[%clk 0:02:59]} 3. d4 {[%clk 0:02:58]}  cxd4 {[%clk 0:03:00]} 4. Nxd4 {[%clk 0:02:58]}  Nf6 {[%clk 0:03:00]} 5. Nc3 {[%clk 0:02:58]}  d6 {[%clk 0:03:00]} 6. Be2 {[%clk 0:02:58]}  e5 {[%clk 0:02:59]} 7. Nf3 {[%clk 0:02:58]}  h6 {[%clk 0:02:51]} 8. O-O {[%clk 0:02:57]}  Be7 {[%clk 0:02:52]} 9. Bc4 {[%clk 0:02:56]}  Be6 {[%clk 0:02:43]} 10. Bb3 {[%clk 0:02:55]}  O-O {[%clk 0:02:41]} 11. Re1 {[%clk 0:02:54]}  Rc8 {[%clk 0:02:40]} 12. h3 {[%clk 0:02:48]}  Na5 {[%clk 0:02:37]} 13. Nd2 {[%clk 0:02:31]}  a6 {[%clk 0:02:26]} 14. Nf1 {[%clk 0:02:31]}  b5 {[%clk 0:02:12]} 15. a3 {[%clk 0:02:19]}  Nxb3 {[%clk 0:01:52]} 16. cxb3 {[%clk 0:02:20]}  d5 {[%clk 0:01:52]} 17. exd5 {[%clk 0:02:20]}  Nxd5 {[%clk 0:01:53]} 18. Nxd5 {[%clk 0:02:14]}  Bxd5 {[%clk 0:01:49]} 19. Rxe5 {[%clk 0:02:14]}  Be6 {[%clk 0:01:50]} 20. Bf4 {[%clk 0:01:49]}  Bf6 {[%clk 0:01:46]} 21. Re2 {[%clk 0:01:46]}  Qxd1 {[%clk 0:01:33]} 22. Rxd1 {[%clk 0:01:45]}  Bxb3 {[%clk 0:01:33]} 23. Rd6 {[%clk 0:01:45]}  a5 {[%clk 0:01:08]} 24. Ne3 {[%clk 0:01:07]}  Rfe8 {[%clk 0:01:02]} 25. Red2 {[%clk 0:01:00]}  Re4 {[%clk 0:01:01]} 26. Bxh6 {[%clk 0:00:55]}  Rc1+ {[%clk 0:00:51]} 27. Nf1 {[%clk 0:00:44]}  Ree1 {[%clk 0:00:49]} 28. Rd8+ {[%clk 0:00:41]}  Kh7 {[%clk 0:00:49]} 0-1


[Site "https://www.chess.com"]

[Event "Early Titled Tuesday Blitz | February 8 2022"]
[White "Gupta, Abhijeet"]
[Black "Khoroshev, Nikita"]
[WhiteFideId "5010608"]
[BlackFideId "14200287"]
[WhiteElo "2549"]
[BlackElo "2354"]
[Result "1-0"]
[Round "06"]
[TimeControl "180+1"]
[Date "2022.02.08"]
[WhiteClock "0:00:21"]
[BlackClock "0:00:08"]

1. Nf3 {[%clk 0:03:00]}  Nf6 {[%clk 0:02:59]} 2. c4 {[%clk 0:03:00]}  e6 {[%clk 0:02:59]} 3. g3 {[%clk 0:02:59]}  d5 {[%clk 0:02:59]} 4. Bg2 {[%clk 0:03:00]}  Nc6 {[%clk 0:02:56]} 5. O-O {[%clk 0:02:51]}  Bd6 {[%clk 0:02:56]} 6. d4 {[%clk 0:02:39]}  O-O {[%clk 0:02:57]} 7. Nc3 {[%clk 0:02:36]}  dxc4 {[%clk 0:02:50]} 8. Bg5 {[%clk 0:02:34]}  h6 {[%clk 0:02:46]} 9. Bxf6 {[%clk 0:02:34]}  Qxf6 {[%clk 0:02:44]} 10. e3 {[%clk 0:02:34]}  e5 {[%clk 0:02:39]} 11. d5 {[%clk 0:02:32]}  Ne7 {[%clk 0:02:37]} 12. Nd2 {[%clk 0:02:33]}  a6 {[%clk 0:02:13]} 13. Nxc4 {[%clk 0:02:21]}  b5 {[%clk 0:02:11]} 14. Nxd6 {[%clk 0:02:16]}  cxd6 {[%clk 0:02:12]} 15. a4 {[%clk 0:02:15]}  b4 {[%clk 0:02:03]} 16. Ne4 {[%clk 0:02:14]}  Qg6 {[%clk 0:02:03]} 17. a5 {[%clk 0:02:07]}  Bf5 {[%clk 0:02:01]} 18. Nd2 {[%clk 0:02:06]}  Bc2 {[%clk 0:01:50]} 19. Qf3 {[%clk 0:02:04]}  Qd3 {[%clk 0:01:22]} 20. Ne4 {[%clk 0:01:56]}  Qxe4 {[%clk 0:01:03]} 21. Qxe4 {[%clk 0:01:56]}  Bxe4 {[%clk 0:01:03]} 22. Bxe4 {[%clk 0:01:56]}  f5 {[%clk 0:01:02]} 23. Bd3 {[%clk 0:01:49]}  e4 {[%clk 0:00:58]} 24. Be2 {[%clk 0:01:45]}  Kf7 {[%clk 0:00:54]} 25. Rfd1 {[%clk 0:01:37]}  Kf6 {[%clk 0:00:49]} 26. Rd4 {[%clk 0:01:37]}  b3 {[%clk 0:00:37]} 27. Ra3 {[%clk 0:01:33]}  Rfb8 {[%clk 0:00:33]} 28. Bc4 {[%clk 0:01:29]}  Ke5 {[%clk 0:00:20]} 29. Rd2 {[%clk 0:01:28]}  Rb4 {[%clk 0:00:17]} 30. Rd4 {[%clk 0:01:05]}  g5 {[%clk 0:00:10]} 31. Bxa6 {[%clk 0:00:46]}  Rxd4 {[%clk 0:00:04]} 32. exd4+ {[%clk 0:00:47]}  Kxd4 {[%clk 0:00:05]} 33. Bb7 {[%clk 0:00:47]}  Ra7 {[%clk 0:00:05]} 34. a6 {[%clk 0:00:48]}  Nxd5 {[%clk 0:00:06]} 35. Ra4+ {[%clk 0:00:47]}  Kd3 {[%clk 0:00:02]} 36. Bxd5 {[%clk 0:00:44]}  Kc2 {[%clk 0:00:03]} 37. Ra3 {[%clk 0:00:41]}  f4 {[%clk 0:00:02]} 38. Rxb3 {[%clk 0:00:22]}  Rxa6 {[%clk 0:00:03]} 39. Ra3 {[%clk 0:00:22]}  Rb6 {[%clk 0:00:03]} 40. Bxe4+ {[%clk 0:00:22]}  Kxb2 {[%clk 0:00:03]} 41. Rd3 {[%clk 0:00:22]}  Rb4 {[%clk 0:00:04]} 42. f3 {[%clk 0:00:22]}  Rc4 {[%clk 0:00:03]} 43. Kg2 {[%clk 0:00:21]}  Rc2+ {[%clk 0:00:04]} 44. Kh3 {[%clk 0:00:21]}  Rf2 {[%clk 0:00:03]} 45. gxf4 {[%clk 0:00:21]}  gxf4 {[%clk 0:00:03]} 46. Rxd6 {[%clk 0:00:21]}  h5 {[%clk 0:00:03]} 47. Rd5 {[%clk 0:00:21]}  Kc3 {[%clk 0:00:04]} 48. Rxh5 {[%clk 0:00:18]}  Kd4 {[%clk 0:00:05]} 49. Rd5+ {[%clk 0:00:19]}  Ke3 {[%clk 0:00:06]} 50. Rd3+ {[%clk 0:00:19]}  Ke2 {[%clk 0:00:06]} 51. Ra3 {[%clk 0:00:19]}  Ke1 {[%clk 0:00:06]} 52. Ra1+ {[%clk 0:00:19]}  Kd2 {[%clk 0:00:07]} 53. Ra2+ {[%clk 0:00:20]}  Ke3 {[%clk 0:00:08]} 54. Rxf2 {[%clk 0:00:20]}  Kxf2 {[%clk 0:00:08]} 55. Kg4 {[%clk 0:00:21]} 1-0


[Site "https://www.chess.com"]

[Event "Early Titled Tuesday Blitz | February 8 2022"]
[White "Guseva, Marina"]
[Black "Zaichenko, Daria"]
[WhiteFideId "4149351"]
[BlackFideId "4197453"]
[WhiteElo "2232"]
[BlackElo "2039"]
[Result "1-0"]
[Round "06"]
[TimeControl "180+1"]
[Date "2022.02.08"]
[WhiteClock "0:00:10"]
[BlackClock "0:00:01"]

1. d4 {[%clk 0:03:00]}  d5 {[%clk 0:02:55]} 2. c4 {[%clk 0:02:59]}  e6 {[%clk 0:02:54]} 3. Nc3 {[%clk 0:02:52]}  Be7 {[%clk 0:02:53]} 4. e3 {[%clk 0:02:47]}  Nf6 {[%clk 0:02:50]} 5. Bd3 {[%clk 0:02:46]}  O-O {[%clk 0:02:48]} 6. Nf3 {[%clk 0:02:46]}  c5 {[%clk 0:02:48]} 7. O-O {[%clk 0:02:43]}  Nc6 {[%clk 0:02:48]} 8. a3 {[%clk 0:02:41]}  cxd4 {[%clk 0:02:46]} 9. exd4 {[%clk 0:02:40]}  dxc4 {[%clk 0:02:45]} 10. Bxc4 {[%clk 0:02:40]}  Nd5 {[%clk 0:02:42]} 11. Qe2 {[%clk 0:02:35]}  b6 {[%clk 0:02:40]} 12. Ne4 {[%clk 0:02:17]}  Bb7 {[%clk 0:02:37]} 13. Bg5 {[%clk 0:02:15]}  Bxg5 {[%clk 0:02:32]} 14. Nexg5 {[%clk 0:02:15]}  Nxd4 {[%clk 0:02:30]} 15. Nxd4 {[%clk 0:01:57]}  Qxg5 {[%clk 0:02:28]} 16. Nf3 {[%clk 0:01:22]}  Qg4 {[%clk 0:02:06]} 17. h3 {[%clk 0:01:21]}  Qg6 {[%clk 0:02:05]} 18. Ne5 {[%clk 0:01:19]}  Qh6 {[%clk 0:02:00]} 19. Bxd5 {[%clk 0:01:07]}  Bxd5 {[%clk 0:01:59]} 20. Ng4 {[%clk 0:01:06]}  Qg6 {[%clk 0:01:53]} 21. Ne3 {[%clk 0:01:06]}  Qe4 {[%clk 0:01:50]} 22. Rfd1 {[%clk 0:01:01]}  Rad8 {[%clk 0:01:34]} 23. Rd2 {[%clk 0:00:58]}  f5 {[%clk 0:01:28]} 24. Rad1 {[%clk 0:00:37]}  f4 {[%clk 0:00:59]} 25. Nxd5 {[%clk 0:00:36]}  Qxe2 {[%clk 0:00:58]} 26. Rxe2 {[%clk 0:00:30]}  exd5 {[%clk 0:00:44]} 27. Re5 {[%clk 0:00:28]}  d4 {[%clk 0:00:43]} 28. Re4 {[%clk 0:00:24]}  d3 {[%clk 0:00:42]} 29. Kf1 {[%clk 0:00:20]}  Rf7 {[%clk 0:00:36]} 30. Rc4 {[%clk 0:00:18]}  g5 {[%clk 0:00:34]} 31. Rc3 {[%clk 0:00:17]}  Rfd7 {[%clk 0:00:33]} 32. f3 {[%clk 0:00:17]}  Kf7 {[%clk 0:00:29]} 33. Rd2 {[%clk 0:00:16]}  h6 {[%clk 0:00:27]} 34. Ke1 {[%clk 0:00:16]}  Kf6 {[%clk 0:00:22]} 35. Kd1 {[%clk 0:00:15]}  Kf5 {[%clk 0:00:20]} 36. Rf2 {[%clk 0:00:15]}  Rd5 {[%clk 0:00:16]} 37. Kd2 {[%clk 0:00:15]}  Rb5 {[%clk 0:00:13]} 38. b3 {[%clk 0:00:15]}  Rbd5 {[%clk 0:00:11]} 39. Rf1 {[%clk 0:00:14]}  R8d7 {[%clk 0:00:11]} 40. Re1 {[%clk 0:00:14]}  Rd8 {[%clk 0:00:07]} 41. Re7 {[%clk 0:00:13]}  R5d7 {[%clk 0:00:07]} 42. Re4 {[%clk 0:00:13]}  h5 {[%clk 0:00:06]} 43. b4 {[%clk 0:00:12]}  g4 {[%clk 0:00:05]} 44. hxg4+ {[%clk 0:00:11]}  hxg4 {[%clk 0:00:04]} 45. Rcc4 {[%clk 0:00:12]}  gxf3 {[%clk 0:00:03]} 46. Rxf4+ {[%clk 0:00:11]}  Kg5 {[%clk 0:00:03]} 47. gxf3 {[%clk 0:00:11]}  Re7 {[%clk 0:00:01]} 48. Rg4+ {[%clk 0:00:11]}  Kh5 {[%clk 0:00:01]} 49. Rge4 {[%clk 0:00:10]} 1-0


[Site "https://www.chess.com"]

[Event "Early Titled Tuesday Blitz | February 8 2022"]
[White "Hansen, Eric"]
[Black "Saravana, Krishnan P."]
[WhiteFideId "2606771"]
[BlackFideId "5018382"]
[WhiteElo "2973"]
[BlackElo "2611"]
[Result "1/2-1/2"]
[Round "06"]
[TimeControl "180+1"]
[Date "2022.02.08"]
[WhiteClock "0:00:08"]
[BlackClock "0:00:21"]

1. e4 {[%clk 0:02:57]}  e6 {[%clk 0:02:58]} 2. Nc3 {[%clk 0:02:57]}  d5 {[%clk 0:02:59]} 3. Nf3 {[%clk 0:02:57]}  Nf6 {[%clk 0:02:59]} 4. exd5 {[%clk 0:02:45]}  exd5 {[%clk 0:02:59]} 5. d4 {[%clk 0:02:46]}  c5 {[%clk 0:02:58]} 6. Bb5+ {[%clk 0:02:46]}  Nc6 {[%clk 0:02:58]} 7. O-O {[%clk 0:02:46]}  Be7 {[%clk 0:02:57]} 8. Re1 {[%clk 0:02:46]}  O-O {[%clk 0:02:56]} 9. Be3 {[%clk 0:02:46]}  c4 {[%clk 0:02:47]} 10. Bxc6 {[%clk 0:02:40]}  bxc6 {[%clk 0:02:46]} 11. Ne5 {[%clk 0:02:41]}  Qc7 {[%clk 0:02:31]} 12. b3 {[%clk 0:02:40]}  Bb4 {[%clk 0:02:26]} 13. Bd2 {[%clk 0:02:40]}  cxb3 {[%clk 0:02:11]} 14. axb3 {[%clk 0:02:39]}  Bf5 {[%clk 0:02:04]} 15. Qf3 {[%clk 0:02:21]}  Bg6 {[%clk 0:01:50]} 16. Nb5 {[%clk 0:00:55]}  cxb5 {[%clk 0:01:47]} 17. Bxb4 {[%clk 0:00:55]}  Rfe8 {[%clk 0:01:46]} 18. Nxg6 {[%clk 0:00:47]}  hxg6 {[%clk 0:01:44]} 19. Rxe8+ {[%clk 0:00:47]}  Rxe8 {[%clk 0:01:43]} 20. Bc5 {[%clk 0:00:47]}  Ne4 {[%clk 0:01:37]} 21. b4 {[%clk 0:00:46]}  a5 {[%clk 0:01:28]} 22. bxa5 {[%clk 0:00:42]}  Nxc5 {[%clk 0:01:25]} 23. dxc5 {[%clk 0:00:39]}  Qxa5 {[%clk 0:01:21]} 24. Rf1 {[%clk 0:00:37]}  Qd2 {[%clk 0:01:06]} 25. Qb3 {[%clk 0:00:34]}  b4 {[%clk 0:01:03]} 26. g3 {[%clk 0:00:26]}  Rc8 {[%clk 0:00:56]} 27. Rb1 {[%clk 0:00:11]}  Rxc5 {[%clk 0:00:56]} 28. Qxb4 {[%clk 0:00:10]}  Rxc2 {[%clk 0:00:55]} 29. Qxd2 {[%clk 0:00:08]}  Rxd2 {[%clk 0:00:55]} 30. Rb8+ {[%clk 0:00:08]}  Kh7 {[%clk 0:00:54]} 31. h4 {[%clk 0:00:08]}  Rd1+ {[%clk 0:00:51]} 32. Kg2 {[%clk 0:00:08]}  f6 {[%clk 0:00:48]} 33. Rd8 {[%clk 0:00:08]}  Rd2 {[%clk 0:00:38]} 34. Kf3 {[%clk 0:00:08]}  d4 {[%clk 0:00:37]} 35. Rd5 {[%clk 0:00:08]}  Kg8 {[%clk 0:00:36]} 36. Rd7 {[%clk 0:00:08]}  Kf8 {[%clk 0:00:35]} 37. Kg2 {[%clk 0:00:08]}  d3 {[%clk 0:00:35]} 38. Kf3 {[%clk 0:00:08]}  Rd1 {[%clk 0:00:24]} 39. Ke3 {[%clk 0:00:07]}  Re1+ {[%clk 0:00:24]} 40. Kf3 {[%clk 0:00:07]}  Rd1 {[%clk 0:00:23]} 41. Ke3 {[%clk 0:00:08]}  Re1+ {[%clk 0:00:21]} 42. Kf3 {[%clk 0:00:08]}  Rd1 {[%clk 0:00:21]} 1/2-1/2


[Site "https://www.chess.com"]

[Event "Early Titled Tuesday Blitz | February 8 2022"]
[White "Hua, Lefong"]
[Black "Mohammad Fahad, Rahman"]
[WhiteFideId "2602253"]
[BlackFideId "10207791"]
[WhiteElo "2547"]
[BlackElo "2323"]
[Result "1-0"]
[Round "06"]
[TimeControl "180+1"]
[Date "2022.02.08"]
[WhiteClock "0:00:13"]
[BlackClock "0:00:10"]

1. d4 {[%clk 0:03:00]}  d5 {[%clk 0:02:54]} 2. c4 {[%clk 0:03:01]}  c6 {[%clk 0:02:53]} 3. Nf3 {[%clk 0:03:01]}  Nf6 {[%clk 0:02:53]} 4. Nc3 {[%clk 0:03:01]}  e6 {[%clk 0:02:53]} 5. e3 {[%clk 0:03:01]}  Nbd7 {[%clk 0:02:53]} 6. Qc2 {[%clk 0:03:01]}  Bd6 {[%clk 0:02:50]} 7. b3 {[%clk 0:03:00]}  O-O {[%clk 0:02:27]} 8. Be2 {[%clk 0:03:00]}  b6 {[%clk 0:02:15]} 9. O-O {[%clk 0:02:47]}  Bb7 {[%clk 0:02:14]} 10. Bb2 {[%clk 0:02:47]}  Rc8 {[%clk 0:02:11]} 11. Rad1 {[%clk 0:02:46]}  Qe7 {[%clk 0:02:10]} 12. Rfe1 {[%clk 0:02:44]}  Rfe8 {[%clk 0:02:10]} 13. h3 {[%clk 0:02:43]}  c5 {[%clk 0:02:09]} 14. cxd5 {[%clk 0:02:43]}  exd5 {[%clk 0:02:06]} 15. Qb1 {[%clk 0:02:31]}  c4 {[%clk 0:01:51]} 16. bxc4 {[%clk 0:02:21]}  dxc4 {[%clk 0:01:52]} 17. d5 {[%clk 0:02:14]}  a6 {[%clk 0:01:13]} 18. a4 {[%clk 0:01:48]}  Bb4 {[%clk 0:01:08]} 19. Nd4 {[%clk 0:01:44]}  Ne4 {[%clk 0:00:59]} 20. Nf5 {[%clk 0:01:25]}  Qe5 {[%clk 0:00:59]} 21. Nxe4 {[%clk 0:01:16]}  Qxe4 {[%clk 0:01:00]} 22. Qxe4 {[%clk 0:01:00]}  Rxe4 {[%clk 0:01:01]} 23. Bf3 {[%clk 0:00:46]}  Ree8 {[%clk 0:00:17]} 24. Re2 {[%clk 0:00:46]}  c3 {[%clk 0:00:17]} 25. Bc1 {[%clk 0:00:47]}  Ne5 {[%clk 0:00:16]} 26. e4 {[%clk 0:00:33]}  g6 {[%clk 0:00:16]} 27. Nd4 {[%clk 0:00:27]}  Nxf3+ {[%clk 0:00:16]} 28. gxf3 {[%clk 0:00:26]}  Rc4 {[%clk 0:00:16]} 29. Rd3 {[%clk 0:00:22]}  Bc5 {[%clk 0:00:12]} 30. Nb3 {[%clk 0:00:20]}  b5 {[%clk 0:00:10]} 31. axb5 {[%clk 0:00:19]}  axb5 {[%clk 0:00:11]} 32. Nxc5 {[%clk 0:00:17]}  Rxc5 {[%clk 0:00:11]} 33. Ba3 {[%clk 0:00:17]}  Rc4 {[%clk 0:00:11]} 34. Rc2 {[%clk 0:00:16]}  b4 {[%clk 0:00:11]} 35. Bxb4 {[%clk 0:00:16]}  Rxb4 {[%clk 0:00:11]} 36. Rdxc3 {[%clk 0:00:17]}  Kg7 {[%clk 0:00:08]} 37. Rc7 {[%clk 0:00:17]}  Ba6 {[%clk 0:00:08]} 38. Ra2 {[%clk 0:00:17]}  Rb1+ {[%clk 0:00:06]} 39. Kg2 {[%clk 0:00:17]}  Bf1+ {[%clk 0:00:07]} 40. Kg3 {[%clk 0:00:16]}  Rb3 {[%clk 0:00:06]} 41. Raa7 {[%clk 0:00:16]}  Rf8 {[%clk 0:00:07]} 42. Rab7 {[%clk 0:00:15]}  Rd3 {[%clk 0:00:06]} 43. d6 {[%clk 0:00:13]}  Rxd6 {[%clk 0:00:06]} 44. Rd7 {[%clk 0:00:12]}  Re6 {[%clk 0:00:05]} 45. Kf4 {[%clk 0:00:12]}  Bxh3 {[%clk 0:00:04]} 46. Kg3 {[%clk 0:00:12]}  Bf1 {[%clk 0:00:04]} 47. Rbc7 {[%clk 0:00:12]}  Bb5 {[%clk 0:00:04]} 48. Rd4 {[%clk 0:00:11]}  Be8 {[%clk 0:00:04]} 49. Rd8 {[%clk 0:00:11]}  Ba4 {[%clk 0:00:04]} 50. Rd4 {[%clk 0:00:11]}  Bd1 {[%clk 0:00:04]} 51. Rxd1 {[%clk 0:00:11]}  h5 {[%clk 0:00:04]} 52. Rdd7 {[%clk 0:00:11]}  Rf6 {[%clk 0:00:04]} 53. e5 {[%clk 0:00:11]}  Rf5 {[%clk 0:00:04]} 54. f4 {[%clk 0:00:11]}  Kh6 {[%clk 0:00:03]} 55. e6 {[%clk 0:00:10]}  g5 {[%clk 0:00:02]} 56. e7 {[%clk 0:00:08]}  gxf4+ {[%clk 0:00:02]} 57. Kf3 {[%clk 0:00:08]}  Re8 {[%clk 0:00:03]} 58. Rd8 {[%clk 0:00:09]}  Rxe7 {[%clk 0:00:03]} 59. Rxe7 {[%clk 0:00:09]}  Kg6 {[%clk 0:00:03]} 60. Rg8+ {[%clk 0:00:09]}  Kh7 {[%clk 0:00:04]} 61. Rf8 {[%clk 0:00:09]}  Kg7 {[%clk 0:00:04]} 62. Rc8 {[%clk 0:00:10]}  Ra5 {[%clk 0:00:05]} 63. Rc3 {[%clk 0:00:10]}  Ra4 {[%clk 0:00:04]} 64. Re4 {[%clk 0:00:10]}  Ra5 {[%clk 0:00:04]} 65. Rxf4 {[%clk 0:00:10]}  Ra1 {[%clk 0:00:04]} 66. Kg2 {[%clk 0:00:10]}  Kg6 {[%clk 0:00:05]} 67. Rg3+ {[%clk 0:00:10]}  Kh6 {[%clk 0:00:05]} 68. Rf6+ {[%clk 0:00:11]}  Kh7 {[%clk 0:00:05]} 69. Rxf7+ {[%clk 0:00:11]}  Kh6 {[%clk 0:00:06]} 70. Rf6+ {[%clk 0:00:12]}  Kh7 {[%clk 0:00:07]} 71. Rf5 {[%clk 0:00:13]}  h4 {[%clk 0:00:08]} 72. Rg4 {[%clk 0:00:13]}  Kh6 {[%clk 0:00:08]} 73. Rxh4+ {[%clk 0:00:12]}  Kg6 {[%clk 0:00:09]} 74. Rhf4 {[%clk 0:00:13]}  Ra6 {[%clk 0:00:09]} 75. Rf3 {[%clk 0:00:12]}  Ra4 {[%clk 0:00:09]} 76. R5f4 {[%clk 0:00:13]}  Ra5 {[%clk 0:00:09]} 77. Rg4+ {[%clk 0:00:13]}  Kh5 {[%clk 0:00:10]} 78. Rfg3 {[%clk 0:00:13]}  Ra1 {[%clk 0:00:10]} 79. f3 {[%clk 0:00:13]}  Ra2+ {[%clk 0:00:10]} 80. Kh3 {[%clk 0:00:13]}  Ra1 {[%clk 0:00:10]} 81. Rh4# {[%clk 0:00:13]} 1-0


[Site "https://www.chess.com"]

[Event "Early Titled Tuesday Blitz | February 8 2022"]
[White "Jakubowska, Anna"]
[Black "Kanyamarala, Tarun"]
[WhiteFideId "1121952"]
[BlackFideId "45004714"]
[WhiteElo "1924"]
[BlackElo "2144"]
[Result "0-1"]
[Round "06"]
[TimeControl "180+1"]
[Date "2022.02.08"]
[WhiteClock "0:00:02"]
[BlackClock "0:00:09"]

1. e4 {[%clk 0:03:00]}  c5 {[%clk 0:03:00]} 2. Nc3 {[%clk 0:03:00]}  Nc6 {[%clk 0:03:00]} 3. g3 {[%clk 0:03:00]}  g6 {[%clk 0:02:59]} 4. Bg2 {[%clk 0:03:00]}  Bg7 {[%clk 0:02:59]} 5. d3 {[%clk 0:03:00]}  e6 {[%clk 0:02:54]} 6. Be3 {[%clk 0:03:00]}  d6 {[%clk 0:02:53]} 7. Qd2 {[%clk 0:03:00]}  Rb8 {[%clk 0:02:52]} 8. Nge2 {[%clk 0:02:58]}  b5 {[%clk 0:02:52]} 9. d4 {[%clk 0:02:58]}  b4 {[%clk 0:02:40]} 10. Nd1 {[%clk 0:02:57]}  cxd4 {[%clk 0:02:35]} 11. Nxd4 {[%clk 0:02:57]}  Ne5 {[%clk 0:02:34]} 12. Qe2 {[%clk 0:02:30]}  Qc7 {[%clk 0:02:22]} 13. a4 {[%clk 0:02:07]}  bxa3 {[%clk 0:02:17]} 14. Rxa3 {[%clk 0:02:05]}  Nc4 {[%clk 0:02:16]} 15. Rc3 {[%clk 0:01:53]}  Ba6 {[%clk 0:02:15]} 16. b3 {[%clk 0:01:46]}  Nxe3 {[%clk 0:02:08]} 17. Qxa6 {[%clk 0:00:57]}  Nxg2+ {[%clk 0:01:50]} 18. Kf1 {[%clk 0:00:58]}  Qb7 {[%clk 0:00:53]} 19. Qa4+ {[%clk 0:00:50]}  Kf8 {[%clk 0:00:52]} 20. f3 {[%clk 0:00:34]}  Nf6 {[%clk 0:00:44]} 21. Kxg2 {[%clk 0:00:34]}  Nxe4 {[%clk 0:00:39]} 22. fxe4 {[%clk 0:00:31]}  Qxe4+ {[%clk 0:00:39]} 23. Nf3 {[%clk 0:00:28]}  Qe2+ {[%clk 0:00:36]} 24. Kh3 {[%clk 0:00:17]}  Bxc3 {[%clk 0:00:35]} 25. Nxc3 {[%clk 0:00:17]}  Qxf3 {[%clk 0:00:35]} 26. Qd4 {[%clk 0:00:16]}  Qh5+ {[%clk 0:00:20]} 27. Kg2 {[%clk 0:00:15]}  Qe5 {[%clk 0:00:20]} 28. Qd3 {[%clk 0:00:11]}  Kg7 {[%clk 0:00:19]} 29. Rf1 {[%clk 0:00:10]}  d5 {[%clk 0:00:19]} 30. Ne2 {[%clk 0:00:09]}  Rbc8 {[%clk 0:00:17]} 31. Nd4 {[%clk 0:00:07]}  Rc7 {[%clk 0:00:16]} 32. Rf2 {[%clk 0:00:07]}  Rhc8 {[%clk 0:00:15]} 33. Kg1 {[%clk 0:00:07]}  Rc3 {[%clk 0:00:14]} 34. Qd1 {[%clk 0:00:06]}  Re3 {[%clk 0:00:14]} 35. Nf3 {[%clk 0:00:05]}  Qc3 {[%clk 0:00:12]} 36. Kg2 {[%clk 0:00:05]}  a6 {[%clk 0:00:11]} 37. Ng5 {[%clk 0:00:05]}  Rc7 {[%clk 0:00:10]} 38. Qf1 {[%clk 0:00:03]}  f6 {[%clk 0:00:09]} 39. Nf3 {[%clk 0:00:02]}  e5 {[%clk 0:00:09]} 40. Nh4 {[%clk 0:00:02]}  e4 {[%clk 0:00:09]} 41. Rf4 {[%clk 0:00:02]}  Qxc2+ {[%clk 0:00:08]} 42. Rf2 {[%clk 0:00:01]}  Qd3 {[%clk 0:00:09]} 43. Rxf6 {[%clk 0:00:01]}  Qxf1+ {[%clk 0:00:09]} 44. Rxf1 {[%clk 0:00:02]}  Rc2+ {[%clk 0:00:08]} 45. Kh3 {[%clk 0:00:02]}  Ree2 {[%clk 0:00:08]} 46. Rh1 {[%clk 0:00:02]}  d4 {[%clk 0:00:08]} 47. Kg4 {[%clk 0:00:02]}  d3 {[%clk 0:00:09]} 0-1


[Site "https://www.chess.com"]